bitfinex-derivatives/quotes_ETHF0:USTF0_20240923
["timestamp","ask_amount","ask_price","bid_price","bid_amount"]
[1727107119885,2.04,2676.0,2675.7,0.3737]
[1727107120190,2.04,2676.0,2675.9,0.37368]
[1727107120491,2.04,2676.2,2675.6,41.1741]
[1727107120789,2.41364,2676.2,2675.9,0.37367]
[1727107120984,0.37366,2676.1,2675.9,0.37368]
[1727107121182,5.2478,2676.0,2675.6,41.1741]
[1727107121393,5.62148,2676.0,2675.7,0.37371]
[1727107121589,5.2478,2676.0,2675.6,41.54782]
[1727107121794,0.37369,2675.9,2675.6,41.54782]
[1727107122283,0.37371,2675.7,2675.6,40.8]
[1727107122487,5.2478,2675.8,2675.6,40.8]
[1727107122687,2.04,2676.0,2675.9,0.37368]
[1727107122891,0.3901,2676.1,2675.7,0.3664]
[1727107123286,3.2078,2676.3,2675.7,0.7441]
[1727107123493,2.04,2676.0,2675.7,0.7441]
[1727107123695,0.37367,2676.0,2675.8,0.37369]
[1727107123886,0.37367,2676.0,2675.9,0.37368]
[1727107124088,2.41365,2676.2,2675.7,0.7441]
[1727107124283,0.37365,2676.1,2675.7,0.7441]
[1727107124497,2.41365,2676.2,2676.0,0.37366]
[1727107124697,2.04,2676.2,2676.1,0.37365]
[1727107125594,2.04,2676.4,2675.8,0.93422]
[1727107125792,3.2078,2676.6,2676.0,0.93418]
[1727107125987,3.58139,2676.6,2676.1,0.93414]
[1727107126186,3.58139,2676.6,2676.0,0.93418]
[1727107126187,3.2078,2676.6,2676.5,0.3736]
[1727107126390,0.37362,2676.4,2676.2,0.37363]
[1727107126598,0.37362,2676.4,2675.9,3.5643]
[1727107126792,0.37362,2676.4,2676.3,0.37363]
[1727107127092,0.3736,2676.5,2676.4,0.37361]
[1727107127290,0.37362,2676.4,2675.9,4.4985]
[1727107127492,2.04,2676.4,2675.9,3.5643]
[1727107127794,2.04,2676.4,2676.3,0.37363]
[1727107127993,3.2078,2676.6,2676.5,0.3736]
[1727107128790,0.3734,2676.9,2676.5,0.3736]
[1727107128791,5.6212,2676.9,2676.8,0.37356]
[1727107129103,3.5812,2676.9,2676.8,0.37356]
[1727107129300,3.95474,2676.9,2676.8,0.37356]
[1727107129594,3.2078,2676.9,2676.6,0.3658]
[1727107129786,3.2078,2677.4,2676.7,4.0994]
[1727107129991,3.2078,2677.4,2676.8,2.04]
[1727107130192,3.2078,2677.4,2676.9,41.1714]
[1727107130498,2.04,2677.3,2677.2,0.3735]
[1727107130698,2.04,2677.3,2676.9,41.1714]
[1727107130997,2.04,2677.3,2677.2,0.3735]
[1727107131600,0.7255,2677.7,2677.2,3.7352]
[1727107131601,2.04,2677.6,2677.2,3.7352]
[1727107131793,3.2078,2677.8,2677.3,0.7292]
[1727107131999,0.3661,2678.0,2677.9,0.3734]
[1727107132294,0.37338,2678.1,2677.9,0.3734]
[1727107132489,2.41337,2678.2,2678.0,0.37339]
[1727107132691,3.2078,2678.4,2678.1,0.37337]
[1727107132692,5.62114,2678.4,2678.1,0.37337]
[1727107132894,5.2478,2678.4,2677.5,3.5665]
[1727107133194,0.37341,2677.9,2677.6,0.37343]
[1727107133397,2.4134,2678.0,2677.7,0.37343]
[1727107133794,0.3734,2677.9,2677.7,0.37343]
[1727107133997,2.41339,2678.0,2677.5,0.3587]
[1727107134190,2.04,2678.0,2677.5,0.3587]
[1727107134588,2.04,2678.0,2677.8,0.37341]
[1727107134995,6.9422,2677.9,2676.9,3.2078]
[1727107135200,2.41349,2677.3,2677.0,0.37352]
[1727107135501,0.37354,2676.9,2676.7,0.3602]
[1727107135803,2.04,2677.1,2676.7,0.3602]
[1727107136299,0.37353,2677.0,2676.7,0.3602]
[1727107136504,2.04,2677.1,2676.5,0.379]
[1727107136696,2.04,2676.6,2676.5,0.75259]
[1727107137198,2.04,2676.6,2676.5,0.379]
[1727107137397,2.04,2676.6,2676.5,0.7526]
[1727107137900,2.41358,2676.6,2676.5,0.379]
[1727107138102,0.37363,2676.3,2676.1,4.464]
[1727107138499,2.41365,2676.2,2676.0,0.3619]
[1727107138705,0.37365,2676.1,2676.0,0.3619]
[1727107138901,2.04,2676.2,2675.3,5.6134]
[1727107139129,0.37367,2676.0,2675.7,0.3737]
[1727107139302,0.37367,2676.0,2675.5,0.37374]
[1727107139303,0.37372,2675.7,2675.5,0.37374]
[1727107139504,2.04,2675.7,2675.4,0.7532]
[1727107139701,0.37372,2675.7,2675.5,3.7376]
[1727107140002,2.04,2675.6,2675.2,40.8]
[1727107140198,2.41373,2675.6,2675.2,40.8]
[1727107140399,3.2078,2675.7,2675.2,40.8]
[1727107140597,0.37377,2675.3,2675.2,40.8]
[1727107140797,5.7178,2675.4,2674.9,1.12702]
[1727107141096,0.37382,2675.0,2674.8,4.464]
[1727107141298,0.37384,2674.8,2674.7,0.70168228]
[1727107141498,8.25464,2674.8,2674.7,0.70168228]
[1727107141708,0.37389,2674.4,2674.3,0.70186947]
[1727107141909,3.58169,2674.4,2674.3,0.70186947]
[1727107142101,13.32089,2674.4,2674.3,0.70186947]
[1727107142412,7.32089,2674.4,2674.3,0.70186947]
[1727107142606,3.2078,2674.4,2674.3,0.70186947]
[1727107142810,3.58169,2674.4,2674.3,0.70186947]
[1727107143306,3.2078,2674.4,2674.3,0.70186947]
[1727107143911,3.2078,2674.4,2674.3,4.44106947]
[1727107144211,3.2078,2674.4,2674.3,4.81497947]
[1727107144415,3.2078,2675.1,2674.7,0.37384]
[1727107144711,3.2078,2675.1,2674.8,0.37383]
[1727107144916,3.2078,2675.1,2674.9,4.11221]
[1727107145111,3.2078,2675.1,2674.4,4.466]
[1727107145112,3.2078,2675.1,2675.0,0.37381]
[1727107145612,0.37376,2675.4,2675.0,4.11221]
[1727107145807,0.37376,2675.4,2675.0,0.37381]
[1727107146404,5.7178,2675.6,2674.8,0.3732]
[1727107146608,3.58157,2675.3,2674.8,0.3732]
[1727107146808,0.37378,2675.2,2674.8,0.74702]
[1727107147007,3.58157,2675.3,2674.9,0.37382]
[1727107147409,3.2078,2675.3,2675.0,0.37381]
[1727107148107,3.2078,2675.3,2674.9,40.8]
[1727107148415,0.37375,2675.4,2674.9,40.8]
[1727107148611,0.37375,2675.4,2675.1,0.37379]
[1727107149219,0.37377,2675.3,2675.0,0.3738]
[1727107149419,3.58157,2675.3,2674.9,41.17381]
[1727107149719,0.37379,2675.1,2674.9,41.17381]
[1727107149905,3.2078,2675.3,2674.9,40.8]
[1727107150111,0.37379,2675.2,2674.9,40.8]
[1727107150309,0.37382,2674.9,2674.8,0.3732]
[1727107150513,3.2078,2675.0,2674.3,3.2078]
[1727107150716,3.2078,2675.0,2674.5,0.37387]
[1727107150717,0.37385,2674.8,2674.5,0.37387]
[1727107151022,5.7178,2675.0,2674.4,41.1864]
[1727107151321,0.37387,2674.6,2674.4,41.1864]
[1727107151520,0.93456,2674.9,2674.4,41.1864]
[1727107151818,0.37388,2674.5,2674.4,41.1864]
[1727107152016,5.7178,2675.0,2674.4,41.1864]
[1727107152217,5.7178,2675.0,2674.6,0.37386]
[1727107152418,6.09162,2675.0,2674.7,0.37384]
[1727107152721,3.2078,2675.0,2674.7,0.37384]
[1727107152906,3.58162,2675.0,2674.8,0.37383]
[1727107153110,15.08,2675.2,2674.5,0.9347]
[1727107153309,5.7178,2675.3,2674.4,41.1864]
[1727107153510,6.65223,2675.3,2674.4,41.1864]
[1727107153812,6.65223,2675.3,2674.5,0.9347]
[1727107153813,5.7178,2675.3,2674.5,0.9347]
[1727107154115,0.37379,2675.2,2675.0,0.3738]
[1727107154520,6.09157,2675.3,2675.1,0.37379]
[1727107154720,3.2078,2675.3,2674.6,4.14244]
[1727107154919,3.2078,2675.3,2675.2,0.37378]
[1727107155419,0.37379,2675.2,2675.0,0.37381]
[1727107155622,3.2078,2675.3,2674.6,3.2078]
[1727107155920,3.2078,2675.3,2674.6,7.44654946]
[1727107156120,3.44435,2675.6,2674.9,3.2078]
[1727107156121,5.7178,2675.6,2674.9,3.2078]
[1727107156327,0.37376,2675.4,2675.2,0.37378]
[1727107156514,6.65215,2675.6,2674.9,7.6658]
[1727107156721,0.37377,2675.3,2675.1,0.37379]
[1727107157229,0.37381,2675.0,2674.9,3.2078]
[1727107157919,0.3738,2675.1,2674.9,3.58161]
[1727107158118,0.37381,2675.0,2674.9,3.2078]
[1727107158318,0.37384,2674.8,2674.6,0.37385]
[1727107158716,6.65225,2675.3,2674.5,0.3601]
[1727107158920,0.37381,2675.1,2674.8,0.37383]
[1727107159124,6.65225,2675.3,2674.7,0.37384]
[1727107159427,6.65225,2675.3,2674.5,0.3601]
[1727107159428,5.7178,2675.3,2674.5,0.3601]
[1727107159625,0.37382,2675.0,2674.7,0.37384]
[1727107159822,0.37382,2674.9,2674.7,0.37384]
[1727107160225,5.7178,2675.3,2674.7,3.7384]
[1727107160429,5.7178,2675.3,2675.0,0.37379]
[1727107160430,0.37378,2675.2,2675.0,0.37379]
[1727107160623,2.51,2675.3,2674.5,3.5679]
[1727107160819,2.88377,2675.3,2675.1,0.37379]
[1727107161133,0.37378,2675.2,2675.1,0.37379]
[1727107161327,2.88378,2675.3,2675.1,0.37379]
[1727107161533,2.88377,2675.3,2675.1,0.37378]
[1727107161829,3.2078,2675.6,2675.2,3.7384]
[1727107162019,0.37376,2675.4,2675.2,0.37377]
[1727107162422,3.2078,2675.6,2675.2,3.7376]
[1727107162628,0.3941,2675.9,2675.1,4.458]
[1727107162823,0.37368,2676.0,2675.4,4.14217]
[1727107163026,0.37368,2676.0,2675.9,0.37368]
[1727107163328,3.2078,2676.1,2675.6,41.17372]
[1727107163629,0.37369,2675.9,2675.7,0.37371]
[1727107163838,2.88368,2676.0,2675.6,40.8]
[1727107164139,2.51,2676.0,2675.6,40.8]
[1727107164342,2.51,2676.0,2675.8,0.3737]
[1727107164634,3.58146,2676.1,2675.9,0.37368]
[1727107164835,2.51,2676.0,2675.1,3.2078]
[1727107165037,3.2078,2675.8,2675.1,3.5753]
[1727107165237,0.93435,2675.5,2675.1,0.3675]
[1727107165435,0.37378,2675.2,2675.1,0.3675]
[1727107165940,4.14217,2675.5,2675.1,41.1675]
[1727107166235,4.14217,2675.5,2675.2,0.37378]
[1727107166236,0.37376,2675.4,2675.2,0.37378]
[1727107166434,0.37377,2675.3,2675.1,41.1675]
[1727107166633,0.37377,2675.3,2675.2,0.37378]
[1727107166831,0.37378,2675.2,2675.1,41.54129]
[1727107167234,0.37378,2675.2,2675.1,40.8]
[1727107167434,0.37379,2675.1,2674.9,0.37382]
[1727107167740,0.37379,2675.1,2674.9,0.48062]
[1727107168043,0.37381,2675.0,2674.9,40.9068]
[1727107168343,0.37377,2675.3,2675.1,0.37379]
[1727107168836,0.37378,2675.2,2675.0,0.3738]
[1727107169034,0.37378,2675.3,2675.0,0.3738]
[1727107169238,0.37378,2675.3,2675.1,0.37379]
[1727107170141,0.37378,2675.3,2675.2,0.37378]
[1727107170336,3.2078,2675.5,2675.1,0.37379]
[1727107170637,0.37375,2675.4,2675.2,0.37377]
[1727107171144,0.37377,2675.3,2675.1,0.37379]
[1727107171340,0.37378,2675.3,2675.1,0.37379]
[1727107171844,3.2078,2675.5,2675.0,0.3738]
[1727107172140,0.93432,2675.6,2674.9,40.9068]
[1727107172141,3.2078,2675.2,2674.9,40.9068]
[1727107172339,0.37381,2675.0,2674.9,40.9068]
[1727107172635,0.37381,2675.0,2674.9,0.1068]
[1727107174438,5.7178,2675.2,2674.9,0.48062]
[1727107174744,0.37381,2675.0,2674.9,0.1068]
[1727107174950,6.09159,2675.2,2675.0,0.3738]
[1727107175244,3.2078,2675.2,2675.1,0.37379]
[1727107175441,3.2078,2675.5,2674.9,0.1068]
[1727107175644,3.2078,2675.5,2675.4,0.37375]
[1727107175840,3.58154,2675.5,2675.3,0.37376]
[1727107176036,3.2078,2675.5,2675.4,0.37375]
[1727107176645,3.2078,2675.5,2675.0,0.93453]
[1727107177047,3.2078,2675.5,2675.4,0.37375]
[1727107177343,3.2078,2675.5,2674.9,0.1068]
[1727107177344,0.37375,2675.4,2674.9,0.1068]
[1727107177546,0.37375,2675.4,2675.3,0.37376]
[1727107177845,3.2078,2675.5,2674.9,0.1068]
[1727107178142,3.58154,2675.5,2674.9,1.04135]
[1727107178640,3.2078,2675.5,2675.3,0.37376]
[1727107178949,0.37375,2675.4,2675.3,0.37376]
[1727107179946,0.37375,2675.4,2675.3,0.37377]
[1727107180445,3.2078,2675.5,2675.3,0.37376]
[1727107180744,3.2078,2675.5,2675.4,0.37375]
[1727107181445,3.58154,2675.5,2675.4,0.37375]
[1727107181943,3.2078,2675.5,2675.4,0.37375]
[1727107182743,1.34964221,2675.6,2675.5,0.37374]
[1727107183139,0.37374,2675.5,2675.4,0.37374]
[1727107183541,0.37372,2675.6,2675.5,0.37374]
[1727107183737,0.97711028,2675.6,2675.5,0.37374]
[1727107183939,0.97711028,2675.7,2675.6,0.37372]
[1727107184142,1.35073054,2675.8,2675.7,0.37371]
[1727107184551,1.35073054,2675.8,2675.4,0.93437]
[1727107184552,3.2078,2675.9,2675.8,0.3737]
[1727107185048,3.58148,2675.9,2675.8,0.3737]
[1727107185745,3.2078,2675.9,2675.8,0.3737]
[1727107185955,3.58148,2675.9,2675.8,0.3737]
[1727107186145,5.04736668,2675.9,2675.8,0.3737]
[1727107186341,5.23431898,2675.9,2675.8,0.3737]
[1727107186546,4.67368668,2675.9,2675.8,0.3737]
[1727107186744,3.2078,2675.9,2675.8,0.3737]
[1727107186948,3.2078,2675.9,2675.8,4.1105]
[1727107187254,3.2078,2675.9,2675.8,0.95784324]
[1727107187255,0.97727276,2675.9,2675.8,0.95784324]
[1727107187549,1.35095276,2676.0,2675.9,0.37368]
[1727107187749,0.37368,2676.0,2675.8,0.37369]
[1727107187957,0.37368,2675.9,2675.8,0.37369]
[1727107188154,1.35095276,2675.9,2675.8,41.17369]
[1727107188351,1.35095276,2675.9,2675.8,41.75789602]
[1727107188558,0.37368,2675.9,2675.8,41.1737]
[1727107188747,1.83956668,2675.9,2675.8,40.8]
[1727107188942,2.02651873,2675.9,2675.8,40.8]
[1727107189360,0.93427,2675.8,2675.5,0.37373]
[1727107189656,2.02774831,2675.7,2675.6,0.37372]
[1727107190349,2.02774831,2675.7,2675.6,0.95797581]
[1727107190350,1.65403831,2675.7,2675.6,0.95797581]
[1727107190549,5.04859626,2675.8,2675.7,0.37371]
[1727107190855,1.65404141,2675.8,2675.5,0.37372]
[1727107191055,2.0278922,2675.7,2675.5,0.37372]
[1727107191261,2.0278922,2675.7,2675.6,0.37372]
[1727107191262,1.84093551,2675.7,2675.6,0.37372]
[1727107191458,1.84093551,2675.7,2675.3,40.8]
[1727107191459,2.5884878,2675.7,2675.3,40.8]
[1727107191649,1.46726985,2675.6,2675.5,0.37373]
[1727107191956,1.84098985,2675.7,2675.6,0.37372]
[1727107192159,1.46726985,2675.7,2675.6,0.37372]
[1727107192357,0.97805954,2675.8,2675.6,11.25616318]
[1727107192656,0.97805954,2675.9,2675.8,0.3737]
[1727107192851,0.97805954,2675.9,2675.8,1.89220318]
[1727107193152,0.97805954,2676.0,2675.9,0.37368]
[1727107193656,0.97805954,2676.0,2675.9,4.69463776]
[1727107194056,0.97805954,2676.0,2675.9,5.62884776]
[1727107194359,1.46726985,2676.2,2676.1,0.37365]
[1727107194360,1.35169954,2676.2,2676.1,0.37365]
[1727107194754,0.97805954,2676.2,2676.1,0.37365]
[1727107194950,0.97805954,2676.2,2676.1,4.11045]
[1727107195153,0.97805954,2676.3,2676.2,0.37364]
[1727107195359,1.84088985,2676.4,2676.3,0.37363]
[1727107195655,3.58141,2676.5,2676.4,0.37361]
[1727107195863,3.76832478,2676.5,2676.4,0.37361]
[1727107196056,5.23391241,2676.5,2676.4,0.37361]
[1727107197159,5.23391241,2676.5,2676.3,0.37362]
[1727107197160,0.37362,2676.4,2676.3,0.37362]
[1727107197661,5.04699763,2676.5,2676.4,0.37361]
[1727107197958,1.29534,2676.7,2676.5,0.3736]
[1727107197959,0.97674658,2676.6,2676.5,0.3736]
[1727107198360,0.97674658,2676.7,2676.6,0.37358]
[1727107198557,1.35031658,2676.7,2676.6,0.37358]
[1727107198950,0.37359,2676.6,2676.5,0.37359]
[1727107199452,0.97674658,2676.8,2676.4,1.31281]
[1727107199658,0.37358,2676.7,2676.6,0.37358]
[1727107199860,1.35031658,2676.8,2676.7,0.37357]
[1727107200056,1.35031658,2676.8,2676.6,0.37358]
[1727107200057,0.37358,2676.7,2676.6,0.37358]
[1727107200460,4.14167,2676.9,2676.4,0.3788]
[1727107200461,3.2078,2676.9,2676.4,0.3788]
[1727107200662,3.2078,2676.9,2676.4,40.8]
[1727107200861,0.18691853,2676.7,2676.4,40.8]
[1727107201175,1.4644173,2676.5,2676.4,40.8]
[1727107201461,2.7720173,2676.5,2676.4,40.8]
[1727107201679,0.37365,2676.1,2676.0,0.37367]
[1727107202161,0.37365,2676.1,2676.0,40.8]
[1727107202361,0.37365,2676.1,2676.0,0.37367]
[1727107203360,0.93415,2676.1,2675.8,0.1068]
[1727107203563,0.37368,2676.0,2675.9,0.37367]
[1727107203756,0.93411,2676.2,2676.0,0.37366]
[1727107203960,0.37366,2676.1,2676.0,0.37366]
[1727107204162,4.18405377,2676.3,2675.8,0.1068]
[1727107205258,4.18405377,2676.3,2675.9,0.3854]
[1727107205458,4.18405377,2676.3,2675.9,0.75907]
[1727107205459,0.37367,2676.0,2675.9,0.75907]
[1727107205767,0.37364,2676.2,2676.1,0.37365]
[1727107206359,0.37364,2676.2,2676.0,0.3859]
[1727107206360,1.34988377,2676.3,2676.2,0.37364]
[1727107206566,0.37365,2676.1,2676.0,0.75956]
[1727107206870,0.37367,2676.0,2675.9,0.3854]
[1727107207364,1.30789,2675.9,2675.8,0.1068]
[1727107207872,0.37368,2675.9,2675.8,0.1068]
[1727107208366,1.30789,2675.9,2675.8,0.1068]
[1727107208760,2.2421,2675.9,2675.8,0.1068]
[1727107208954,0.37372,2675.6,2675.5,1.35062229]
[1727107209156,4.51584,2675.6,2675.5,1.35062229]
[1727107209363,4.87234,2675.6,2675.5,0.96522229]
[1727107209560,2.24253,2675.4,2675.3,1.44783343]
[1727107209971,2.2427,2675.2,2675.1,1.93044458]
[1727107210164,11.4505,2675.2,2675.1,1.93044458]
[1727107210367,15.1889,2675.2,2675.1,1.93044458]
[1727107210556,8.25444,2675.2,2675.1,1.93044458]
[1727107210866,3.58158,2675.2,2675.1,1.93044458]
[1727107211462,8.25444,2675.2,2675.1,1.93044458]
[1727107212072,3.58158,2675.2,2675.1,1.93044458]
[1727107212270,3.39480893,2675.2,2674.5,0.3726]
[1727107212465,3.39480893,2675.2,2675.0,0.37381]
[1727107212466,1.46467552,2675.1,2675.0,0.37381]
[1727107212663,0.97629165,2675.3,2675.0,0.37379]
[1727107212969,0.97634988,2675.2,2675.1,0.37379]
[1727107213171,0.3738,2675.1,2674.5,0.3726]
[1727107213375,1.35013988,2675.1,2674.8,0.37383]
[1727107213664,6.09509229,2675.5,2674.6,0.37386]
[1727107213665,0.37383,2674.9,2674.6,0.37386]
[1727107213866,0.37382,2674.9,2674.5,0.3726]
[1727107214060,5.11881988,2674.6,2674.0,4.538]
[1727107214262,0.37392,2674.2,2674.1,0.9431949]
[1727107214463,4.18414988,2674.6,2674.1,0.94323959]
[1727107214663,0.97634988,2674.5,2674.2,0.58448612]
[1727107214866,0.97634988,2674.6,2674.5,0.37388]
[1727107215068,3.2078,2675.0,2674.6,0.37386]
[1727107215069,0.97634988,2674.7,2674.6,0.37386]
[1727107215262,0.97634988,2674.8,2674.6,0.58448612]
[1727107215464,0.37384,2674.8,2674.7,0.3587]
[1727107215870,0.97634988,2674.8,2674.7,0.73255]
[1727107216273,0.97634988,2675.0,2674.7,0.73255]
[1727107216674,0.97634988,2675.0,2674.7,0.3587]
[1727107216675,0.37384,2674.8,2674.7,0.3587]
[1727107217172,0.9346,2674.8,2674.4,0.3933]
[1727107217373,0.97634988,2674.7,2674.6,0.37385]
[1727107217566,0.37384,2674.8,2674.4,0.3933]
[1727107217767,0.37384,2674.8,2674.6,0.37386]
[1727107218272,0.37388,2674.5,2674.4,0.76719]
[1727107218465,0.37385,2674.7,2674.5,0.37388]
[1727107218663,0.97634988,2674.9,2674.8,0.37384]
[1727107218867,3.2078,2675.0,2674.5,0.9347]
[1727107219062,3.2078,2675.0,2674.9,0.37382]
[1727107219262,0.37379,2675.1,2674.9,0.37381]
[1727107219469,1.35013988,2675.2,2674.6,0.93467]
[1727107219768,0.97634988,2675.5,2675.0,2.51]
[1727107219987,0.01,2675.6,2675.5,0.37374]
[1727107220265,0.01,2675.6,2675.5,4.11134]
[1727107220674,0.01,2675.6,2675.5,4.69554468]
[1727107220974,0.01,2675.6,2675.5,4.69554225]
[1727107221561,0.01,2675.6,2675.5,0.95794225]
[1727107221762,0.01,2675.6,2675.5,4.69554225]
[1727107222484,0.01,2675.6,2675.5,0.37374]
[1727107222675,0.01,2675.6,2675.5,4.11134]
[1727107223376,0.97634988,2676.0,2675.9,0.37368]
[1727107223579,0.97634988,2676.2,2676.1,0.37365]
[1727107223876,0.97634988,2676.2,2675.4,7.6518]
[1727107224076,0.97634988,2676.1,2675.9,0.37368]
[1727107224466,0.97634988,2676.1,2675.4,7.6518]
[1727107224669,0.97634988,2676.2,2676.1,0.37365]
[1727107224872,4.18414988,2676.3,2676.0,0.37366]
[1727107225470,4.55777988,2676.3,2675.7,0.3602]
[1727107225776,4.55777988,2676.3,2676.0,0.37366]
[1727107226175,0.97634988,2676.2,2676.0,0.37366]
[1727107226371,4.55777988,2676.3,2676.0,0.37366]
[1727107226580,4.18414988,2676.3,2675.8,0.3751]
[1727107226776,0.97634988,2676.2,2675.8,0.3751]
[1727107226979,0.37366,2676.1,2675.9,0.37368]
[1727107227482,0.37366,2676.1,2675.8,0.3751]
[1727107227483,0.37365,2676.2,2675.8,0.3751]
[1727107227673,0.37366,2676.1,2675.9,0.37367]
[1727107228071,4.18414988,2676.3,2676.1,0.37365]
[1727107228272,1.82877552,2676.5,2675.8,0.3751]
[1727107228273,0.97634988,2676.4,2675.8,0.3751]
[1727107228575,0.97634988,2676.7,2676.0,0.93418]
[1727107228777,1.46467552,2676.8,2676.6,0.37358]
[1727107228778,0.97634988,2676.8,2676.6,0.37358]
[1727107228981,1.34990988,2676.8,2676.6,0.37358]
[1727107229178,1.34990988,2676.8,2676.1,5.37714]
[1727107229179,0.37354,2676.9,2676.7,0.37357]
[1727107229374,0.37354,2676.9,2676.2,0.93409]
[1727107229375,0.37357,2676.8,2676.5,0.37359]
[1727107229583,0.97634988,2676.9,2676.4,0.763]
[1727107229773,0.37354,2676.9,2676.7,0.37356]
[1727107229978,4.55768988,2677.0,2676.7,0.37356]
[1727107230181,3.2078,2677.0,2676.5,0.3833]
[1727107230372,3.2078,2676.7,2676.0,7.7378]
[1727107230578,0.97634988,2676.6,2676.0,7.6508]
[1727107230777,0.37363,2676.3,2676.1,0.37365]
[1727107230982,0.37365,2676.1,2676.0,4.443]
[1727107231375,3.2078,2676.3,2675.8,1.1463]
[1727107231581,3.58143,2676.3,2676.1,0.37365]
[1727107231889,3.2078,2676.3,2676.2,0.37364]
[1727107232183,1.34995988,2676.5,2676.3,0.37362]
[1727107232377,0.37361,2676.5,2676.3,0.37362]
[1727107232571,0.97634988,2676.7,2676.0,2.51]
[1727107232777,0.97634988,2676.9,2676.2,0.93411]
[1727107232975,0.97634988,2676.9,2676.3,4.443]
[1727107233174,3.2078,2677.0,2676.4,0.7515]
[1727107233375,0.37357,2676.7,2676.4,1.1447]
[1727107233783,0.37357,2676.7,2676.5,0.37359]
[1727107233974,0.37357,2676.8,2676.6,0.37358]
[1727107234171,0.37357,2676.8,2676.7,0.37357]
[1727107234379,5.11799988,2677.0,2676.4,0.7765]
[1727107234682,1.46467552,2677.1,2676.3,0.37362]
[1727107234683,0.37361,2676.5,2676.3,0.37362]
[1727107235001,0.37361,2676.4,2676.3,0.37362]
[1727107235179,0.37361,2676.4,2676.2,0.37363]
[1727107235779,4.14175,2676.7,2676.3,0.37363]
[1727107235780,0.3736,2676.5,2676.3,0.37363]
[1727107236184,0.97634988,2676.8,2676.1,1.31743]
[1727107236381,2.28050988,2676.9,2676.5,0.3736]
[1727107236880,2.28050988,2676.9,2676.2,0.93411]
[1727107237086,0.97634988,2676.9,2676.8,0.37356]
[1727107237275,4.18414988,2677.0,2676.7,0.37356]
[1727107237479,4.18414988,2677.0,2676.9,0.37354]
[1727107237774,0.37356,2676.8,2676.7,0.37356]
[1727107237980,0.37356,2676.8,2676.6,0.37358]
[1727107238181,3.2078,2677.0,2676.8,0.37356]
[1727107238390,0.97634988,2677.3,2676.9,0.3777]
[1727107238576,0.37349,2677.3,2676.9,1.31155]
[1727107238778,3.5984,2677.4,2677.0,0.37352]
[1727107239089,4.5321,2677.4,2677.0,0.37352]
[1727107239387,3.5984,2677.4,2676.9,0.3777]
[1727107239775,4.5321,2677.4,2676.9,0.3777]
[1727107240184,0.37349,2677.3,2676.9,0.3777]
[1727107240485,3.5984,2677.4,2677.0,0.37352]
[1727107240787,0.37351,2677.2,2677.0,0.37352]
[1727107241087,0.37351,2677.2,2676.9,0.3777]
[1727107241279,0.37351,2677.2,2677.1,0.37351]
[1727107241480,3.5984,2677.4,2677.1,0.37351]
[1727107241481,0.3735,2677.3,2677.1,0.37351]
[1727107241692,3.5984,2677.4,2676.9,0.3777]
[1727107241991,3.2078,2677.4,2676.9,1.31155]
[1727107242177,3.2078,2677.4,2677.3,0.37349]
[1727107242383,4.18414988,2677.9,2677.3,7.32549]
[1727107242683,1.95291229,2678.2,2677.3,5.7178]
[1727107242684,0.93345,2678.1,2677.3,5.7178]
[1727107242887,0.37344,2677.7,2677.4,4.442]
[1727107243081,0.37342,2677.8,2677.4,4.442]
[1727107243282,0.93345,2678.1,2677.4,4.442]
[1727107243590,0.37341,2677.9,2677.7,0.37342]
[1727107244575,4.18414988,2678.6,2677.8,0.05128951]
[1727107244776,0.3734,2677.9,2677.8,0.05128951]
[1727107245188,5.04132,2677.9,2677.8,0.05128951]
[1727107245790,5.77002,2677.9,2677.8,0.05128951]
[1727107246085,4.8365,2677.9,2677.8,0.05128951]
[1727107246286,5.77002,2677.9,2677.8,0.05128951]
[1727107247982,4.8365,2677.9,2677.8,0.05128951]
[1727107248188,5.77002,2677.9,2677.8,0.05128951]
[1727107248388,0.7287,2677.9,2677.8,0.05128951]
[1727107248574,0.7287,2677.9,2677.8,0.42470951]
[1727107248979,3.2078,2678.3,2677.8,0.05128951]
[1727107249184,0.7532,2678.3,2678.2,0.37336]
[1727107249383,1.12655,2678.3,2678.2,0.37336]
[1727107249690,0.7532,2678.3,2678.1,0.37337]
[1727107249887,1.12656,2678.3,2678.1,0.37337]
[1727107250080,1.12656,2678.3,2678.2,0.37336]
[1727107250081,1.12655,2678.3,2678.2,0.37336]
[1727107250283,3.597,2678.8,2678.4,0.37333]
[1727107250284,4.53022,2678.8,2678.4,0.37333]
[1727107250479,0.37333,2678.5,2678.3,0.37334]
[1727107250679,0.37333,2678.5,2678.0,5.36846]
[1727107250989,0.7532,2678.7,2678.0,5.36846]
[1727107250990,0.37331,2678.6,2678.5,0.37331]
[1727107251481,0.37332,2678.5,2678.2,0.3596]
[1727107251888,0.37332,2678.6,2678.4,0.37333]
[1727107252187,0.37332,2678.6,2678.5,0.37332]
[1727107252684,0.7532,2678.7,2678.6,0.37331]
[1727107252887,3.58109,2678.8,2678.3,0.37335]
[1727107253183,3.58109,2678.8,2678.5,0.37331]
[1727107253184,0.37331,2678.6,2678.5,0.37331]
[1727107253484,0.37333,2678.5,2678.3,4.80734]
[1727107253688,0.37331,2678.6,2678.5,0.37331]
[1727107254078,0.93324,2678.7,2678.3,4.434]
[1727107254279,0.37333,2678.5,2678.4,0.37333]
[1727107254487,0.37332,2678.5,2678.3,4.434]
[1727107254688,0.37331,2678.6,2678.3,4.434]
[1727107254883,0.37332,2678.5,2678.4,0.37333]